fUSD/lending_fUSD_20250108
["ID","MTS","AMOUNT","RATE_DAILY","PERIOD"]
[348169414,1736362256081,-608.48,0.00011543,2]
[348169415,1736362256094,-500.0,0.00011543,2]
[348169416,1736362256107,-720.65,0.00011543,2]
[348169417,1736362256121,-500.0,0.00011543,2]
[348169418,1736362256133,-500.0,0.00011543,2]
[348169419,1736362256146,-500.0,0.00011543,2]
[348169420,1736362256159,-500.0,0.00011543,2]
[348169421,1736362256171,-500.0,0.00011543,2]
[348169422,1736362256184,-500.0,0.00011543,2]
[348169423,1736362256198,-590.10443699,0.00011543,2]
[348169424,1736362256210,-500.38,0.00011543,2]
[348169425,1736362256223,-150.68112815,0.00011543,2]
[348169426,1736362256235,-500.0,0.00011543,2]
[348169427,1736362256248,-500.0,0.00011543,2]
[348169428,1736362256261,-500.0,0.00011543,2]
[348169429,1736362256273,-500.0,0.00011543,2]
[348169430,1736362256286,-570.68003354,0.00011543,2]
[348169431,1736362256298,-500.0,0.00011543,2]
[348169432,1736362256311,-624.94,0.00011543,2]
[348169433,1736362256324,-500.0,0.00011543,2]
[348169434,1736362256337,-665.75,0.00011543,2]
[348169435,1736362256350,-659.93,0.00011543,2]
[348169436,1736362256364,-517.22799427,0.00011543,2]
[348169437,1736362256378,-500.0,0.00011543,2]
[348169438,1736362256392,-386.37,0.00011543,2]
[348169439,1736362256406,-500.0,0.00011543,2]
[348169440,1736362256418,-500.0,0.00011543,2]
[348169441,1736362256427,-500.0,0.00011543,2]
[348169442,1736362256436,-500.0,0.00011543,2]
[348169443,1736362256446,-500.0,0.00011543,2]
[348169444,1736362256456,-500.0,0.00011543,2]
[348169445,1736362256465,-500.0,0.00011543,2]
[348169446,1736362256475,-285.31,0.00011543,2]
[348169447,1736362256484,-500.0,0.00011543,2]
[348169448,1736362256494,-500.0,0.00011543,2]
[348169449,1736362256504,-500.0,0.00011543,2]
[348169450,1736362256513,-626.14,0.00011543,2]
[348169451,1736362256523,-500.0,0.00011543,2]
[348169452,1736362256534,-500.0,0.00011543,2]
[348169453,1736362256794,-500.0,0.00011543,2]
[348169454,1736362256821,-500.0,0.00011543,2]
[348169455,1736362256842,-500.0,0.00011543,2]
[348169456,1736362256852,-500.0,0.00011543,2]
[348169457,1736362256862,-500.0,0.00011543,2]
[348169458,1736362256872,-500.0,0.00011543,2]
[348169459,1736362256882,-1462.34,0.00011543,2]
[348169460,1736362256892,-757.86,0.00011543,2]
[348169461,1736362256903,-701.16,0.00011543,2]
[348169462,1736362256913,-2580.23,0.00011543,2]
[348169463,1736362256926,-628.18,0.00011543,2]
[348169464,1736362256937,-500.0,0.00011543,2]
[348169465,1736362256947,-500.0,0.00011543,2]
[348169466,1736362256956,-214.31444851,0.00011567,2]
[348169467,1736362256967,-587.0,0.0001157,2]
[348169468,1736362256976,-150.227652,0.00011576,2]
[348169469,1736362256986,-150.0,0.0001158,2]
[348169470,1736362256997,-150.0,0.00011592,2]
[348169471,1736362257007,-150.0,0.00011604,2]
[348169472,1736362257018,-1215.3,0.00011616,2]
[348169473,1736362257028,-993.2,0.00011616,2]
[348169474,1736362257038,-150.0,0.00011634,2]
[348169475,1736362257048,-500.0,0.00011677,2]
[348169476,1736362257058,-500.0,0.00011677,2]
[348169477,1736362257068,-500.0,0.00011678,2]
[348169478,1736362257078,-500.0,0.00011678,2]
[348169479,1736362257088,-1871.82,0.00011678,2]
[348169480,1736362257098,-500.0,0.00011678,2]
[348169481,1736362257108,-651.25,0.00011678,2]
[348169482,1736362257118,-515.76,0.00011678,2]
[348169483,1736362257129,-507.55,0.00011678,2]
[348169484,1736362257139,-500.0,0.00011678,2]
[348169485,1736362257149,-500.0,0.00011678,2]
[348169486,1736362257159,-500.0,0.00011678,2]
[348169487,1736362257169,-363.316,0.0001168,2]
[348169488,1736362257178,-150.0,0.00011687,2]
[348169489,1736362257188,-1500.0,0.00011708,2]
[348169490,1736362257198,-992.92,0.00011715,2]
[348169491,1736362257207,-500.0,0.00011715,2]
[348169492,1736362257217,-605.86,0.00011715,2]
[348169493,1736362257227,-718.38,0.00011715,2]
[348169494,1736362257236,-688.45,0.00011715,2]
[348169495,1736362257246,-1118.67,0.00011715,2]
[348169496,1736362257256,-618.66,0.00011715,2]
[348169497,1736362257266,-868.06,0.00011715,2]
[348169498,1736362257276,-1466.85,0.00011715,2]
[348169499,1736362257286,-780.29,0.00011715,2]
[348169500,1736362257296,-730.05,0.00011715,2]
[348169501,1736362257306,-500.0,0.00011715,2]
[348169502,1736362257317,-796.37,0.00011715,2]
[348169503,1736362257327,-1887.92,0.00011715,2]
[348169504,1736362257337,-976.17,0.00011715,2]
[348169505,1736362257347,-543.78,0.00011715,2]
[348169506,1736362257357,-500.0,0.00011715,2]
[348169507,1736362257367,-500.0,0.00011715,2]
[348169508,1736362257379,-862.27,0.00011715,2]
[348169509,1736362257389,-500.0,0.00011715,2]
[348169510,1736362257399,-559.19,0.00011715,2]
[348169511,1736362257409,-508.44,0.00011715,2]
[348169512,1736362257419,-1264.47,0.00011715,2]
[348169513,1736362257429,-533.52,0.00011715,2]
[348169514,1736362257440,-150.0,0.00011716,2]
[348169515,1736362257450,-150.0,0.00011728,2]
[348169516,1736362257460,-150.0,0.0001174,2]
[348169517,1736362257470,-150.0,0.00011753,2]
[348169518,1736362257480,-150.0,0.00011753,2]
[348169519,1736362257490,-150.0,0.00011753,2]
[348169520,1736362257499,-524.26,0.0001178,2]
[348169521,1736362257509,-500.0,0.0001178,2]
[348169522,1736362257519,-500.0,0.0001178,2]
[348169523,1736362257529,-500.0,0.0001178,2]
[348169524,1736362257540,-500.0,0.0001178,2]
[348169525,1736362257550,-500.0,0.0001178,2]
[348169526,1736362257560,-500.0,0.0001178,2]
[348169527,1736362257570,-165.67,0.00011782,2]
[348169528,1736362257580,-500.0,0.00011788,2]
[348169529,1736362257590,-500.0,0.00011788,2]
[348169530,1736362257599,-500.0,0.00011788,2]
[348169531,1736362257607,-2544.2,0.00011788,2]
[348169532,1736362257617,-1042.29,0.00011788,2]
[348169533,1736362257627,-629.99,0.00011788,2]
[348169534,1736362257636,-500.0,0.00011788,2]
[348169535,1736362257646,-926.3,0.00011788,2]
[348169536,1736362257656,-1464.56,0.00011788,2]
[348169537,1736362257666,-1397.23,0.00011788,2]
[348169538,1736362257676,-2215.57,0.00011788,2]
[348169539,1736362257687,-1134.57,0.00011788,2]
[348169540,1736362257697,-3254.43,0.00011788,2]
[348169541,1736362257707,-3864.53,0.00011788,2]
[348169542,1736362257716,-214.31444851,0.00011789,2]
[348169543,1736362257726,-988.241,0.00011793,2]
[348169544,1736362257735,-634.0,0.00011793,2]
[348169545,1736362257745,-566.0,0.00011793,2]
[348169546,1736362257756,-150.0,0.00011793,2]
[348169547,1736362257766,-1860.0,0.00011793,2]
[348169548,1736362257776,-1258.0,0.00011793,2]
[348169549,1736362257788,-3776.0,0.00011793,2]
[348169550,1736362257798,-915.0,0.00011793,2]
[348169551,1736362257808,-819.0,0.00011793,2]
[348169552,1736362257817,-3976.0,0.00011793,2]
[348169553,1736362257827,-537.0,0.00011793,2]
[348169554,1736362257837,-229.0,0.00011793,2]
[348169555,1736362257847,-150.0,0.00011793,2]
[348169556,1736362257857,-1103.0,0.00011793,2]
[348169557,1736362257866,-150.0,0.00011794,2]
[348169558,1736362257876,-500.0,0.00011816,2]
[348169559,1736362257886,-500.0,0.00011816,2]
[348169560,1736362257895,-577.51,0.00011816,2]
[348169561,1736362257905,-500.0,0.00011816,2]
[348169562,1736362257915,-587.5,0.00011816,2]
[348169563,1736362257929,-500.0,0.00011816,2]
[348169564,1736362257939,-500.0,0.00011816,2]
[348169565,1736362257950,-253.04,0.00011816,2]
[348169566,1736362257960,-500.0,0.00011816,2]
[348169567,1736362257971,-500.0,0.00011816,2]
[348169568,1736362257981,-500.0,0.00011816,2]
[348169569,1736362257990,-658.68,0.00011816,2]
[348169570,1736362258001,-500.0,0.00011816,2]
[348169571,1736362258011,-500.0,0.00011816,2]
[348169572,1736362258020,-550.29,0.00011816,2]
[348169573,1736362258029,-383.01,0.00011816,2]
[348169574,1736362258039,-300.06791929,0.00011816,2]
[348169575,1736362258049,-801.18,0.00011816,2]
[348169576,1736362258058,-701.9,0.00011816,2]
[348169577,1736362258067,-500.0,0.00011816,2]
[348169578,1736362258077,-609.7,0.00011816,2]
[348169579,1736362258086,-693.7,0.00011816,2]
[348169580,1736362258095,-500.0,0.00011816,2]
[348169581,1736362258105,-500.0,0.00011816,2]
[348169582,1736362258115,-718.53,0.00011816,2]
[348169583,1736362258125,-500.0,0.00011816,2]
[348169584,1736362258134,-500.0,0.00011816,2]
[348169585,1736362258143,-784.05,0.00011816,2]
[348169586,1736362258153,-500.0,0.00011816,2]
[348169587,1736362258162,-500.0,0.00011816,2]
[348169588,1736362258171,-557.73,0.00011816,2]
[348169589,1736362258182,-500.0,0.00011816,2]
[348169590,1736362258193,-560.21,0.00011816,2]
[348169591,1736362258202,-500.0,0.00011816,2]
[348169592,1736362258213,-500.0,0.00011816,2]
[348169593,1736362258223,-500.0,0.00011816,2]
[348169594,1736362258232,-500.0,0.00011816,2]
[348169595,1736362258241,-500.0,0.00011816,2]
[348169596,1736362258251,-642.81,0.00011816,2]
[348169597,1736362258260,-500.0,0.00011816,2]
[348169598,1736362258270,-500.0,0.00011816,2]
[348169599,1736362258280,-956.3,0.00011816,2]
[348169600,1736362258290,-500.0,0.00011816,2]
[348169601,1736362258300,-500.0,0.00011816,2]
[348169602,1736362258310,-500.0,0.00011816,2]
[348169603,1736362258320,-603.91,0.00011816,2]
[348169604,1736362258330,-500.0,0.00011816,2]
[348169605,1736362258341,-500.0,0.00011816,2]
[348169606,1736362258351,-1933.32,0.00011816,2]
[348169607,1736362258361,-500.0,0.00011816,2]
[348169608,1736362258374,-500.0,0.00011816,2]
[348169609,1736362258384,-500.0,0.00011816,2]
[348169610,1736362258395,-657.09,0.00011816,2]
[348169611,1736362258405,-576.46,0.00011816,2]
[348169612,1736362258415,-666.44,0.00011816,2]
[348169613,1736362258425,-554.61,0.00011816,2]
[348169614,1736362258435,-500.0,0.00011816,2]
[348169615,1736362258445,-2827.12,0.00011816,2]
[348169616,1736362258454,-2378.14,0.00011816,2]
[348169617,1736362258464,-1628.91,0.00011816,2]
[348169618,1736362258473,-590.58,0.00011816,2]
[348169619,1736362258483,-2603.36,0.00011816,2]
[348169620,1736362258493,-500.0,0.00011816,2]
[348169621,1736362258503,-500.0,0.00011816,2]
[348169622,1736362258512,-1087.38,0.00011816,2]
[348169623,1736362258521,-500.0,0.00011816,2]
[348169624,1736362258531,-500.0,0.00011816,2]
[348169625,1736362258542,-3082.77,0.00011816,2]
[348169626,1736362258553,-573.65,0.00011816,2]
[348169627,1736362258563,-787.24,0.00011816,2]
[348169628,1736362258573,-500.0,0.00011816,2]
[348169629,1736362258583,-1301.03,0.00011816,2]
[348169630,1736362258593,-500.0,0.00011816,2]
[348169631,1736362258603,-1988.72,0.00011816,2]
[348169632,1736362258613,-510.39,0.00011816,2]
[348169633,1736362258623,-363.78,0.00011816,2]
[348169634,1736362258634,-500.0,0.00011816,2]
[348169635,1736362258644,-500.0,0.00011816,2]
[348169636,1736362258654,-1555.02,0.00011816,2]
[348169637,1736362258664,-548.31830859,0.00011816,2]
[348169638,1736362258674,-1430.04,0.00011816,2]
[348169639,1736362258685,-500.0,0.00011816,2]
[348169640,1736362258694,-981.86,0.00011816,2]
[348169641,1736362258704,-692.07,0.00011816,2]
[348169642,1736362258714,-1072.98,0.00011816,2]
[348169643,1736362258723,-657.45,0.00011816,2]
[348169644,1736362258733,-948.96,0.00011816,2]
[348169645,1736362258742,-553.15,0.00011816,2]
[348169646,1736362258752,-500.0,0.00011816,2]
[348169647,1736362258762,-2333.81,0.00011816,2]
[348169648,1736362258771,-500.0,0.00011816,2]
[348169649,1736362258781,-443.60988287,0.00011816,2]
[348169650,1736362258792,-500.0,0.00011816,2]
[348169651,1736362258801,-762.73,0.00011816,2]
[348169652,1736362258811,-450.06467264,0.00011816,2]
[348169653,1736362258822,-688.07,0.00011816,2]
[348169654,1736362258833,-500.0,0.00011816,2]
[348169655,1736362258843,-500.0,0.00011816,2]
[348169656,1736362258853,-500.0,0.00011816,2]
[348169657,1736362258863,-2329.942514,0.00011816,2]
[348169658,1736362258873,-500.0,0.00011816,2]
[348169659,1736362258883,-1310.72,0.00011816,2]
[348169660,1736362258892,-1030.81,0.00011816,2]
[348169661,1736362258902,-500.0,0.00011816,2]
[348169662,1736362258912,-500.0,0.00011816,2]
[348169663,1736362258922,-2618.54,0.00011816,2]
[348169664,1736362258934,-500.0,0.00011816,2]
[348169665,1736362258944,-2072.313167,0.00011816,2]
[348169666,1736362258954,-500.0,0.00011816,2]
[348169667,1736362258964,-1325.27,0.00011816,2]
[348169668,1736362258976,-500.0,0.00011816,2]
[348169669,1736362258986,-621.86,0.00011816,2]
[348169670,1736362258996,-500.0,0.00011816,2]
[348169671,1736362259006,-500.0,0.00011816,2]
[348169672,1736362259016,-500.0,0.00011816,2]
[348169673,1736362259026,-3041.28,0.00011816,2]
[348169674,1736362259037,-1664.79,0.00011816,2]
[348169675,1736362259047,-500.0,0.00011816,2]
[348169676,1736362259057,-293.48,0.00011817,2]
[348169677,1736362259067,-596.40219336,0.00011817,2]
[348169678,1736362259076,-500.0,0.00011817,2]
[348169679,1736362259086,-500.0,0.00011817,2]
[348169680,1736362259096,-500.0,0.00011817,2]
[348169681,1736362259106,-500.0,0.00011817,2]
[348169682,1736362259116,-500.0,0.00011817,2]
[348169683,1736362259126,-608.48,0.00011817,2]
[348169684,1736362259137,-500.0,0.00011817,2]
[348169685,1736362259148,-720.65,0.00011817,2]
[348169686,1736362259159,-500.0,0.00011817,2]
[348169687,1736362259169,-500.0,0.00011817,2]
[348169688,1736362259180,-500.0,0.00011817,2]
[348169689,1736362259190,-500.0,0.00011817,2]
[348169690,1736362259201,-500.0,0.00011817,2]
[348169691,1736362259211,-500.0,0.00011817,2]
[348169692,1736362259221,-500.0,0.00011817,2]
[348169693,1736362259232,-500.0,0.00011817,2]
[348169694,1736362259242,-500.0,0.00011817,2]
[348169695,1736362259252,-410.09,0.00011817,2]
[348169696,1736362259262,-500.0,0.00011817,2]
[348169697,1736362259272,-624.94,0.00011817,2]
[348169698,1736362259281,-500.0,0.00011817,2]
[348169699,1736362259293,-665.75,0.00011817,2]
[348169700,1736362259303,-659.93,0.00011817,2]
[348169701,1736362259313,-500.0,0.00011817,2]
[348169702,1736362259323,-500.0,0.00011817,2]
[348169703,1736362259332,-500.0,0.00011817,2]
[348169704,1736362259342,-500.0,0.00011817,2]
[348169705,1736362259351,-500.0,0.00011817,2]
[348169706,1736362259361,-500.0,0.00011817,2]
[348169707,1736362259374,-500.0,0.00011817,2]
[348169708,1736362259385,-500.0,0.00011817,2]
[348169709,1736362259395,-500.0,0.00011817,2]
[348169710,1736362259405,-500.0,0.00011817,2]
[348169711,1736362259415,-500.0,0.00011817,2]
[348169712,1736362259425,-500.0,0.00011817,2]
[348169713,1736362259435,-413.42633194,0.00011817,2]
[348169714,1736362259445,-500.0,0.00011817,2]
[348169715,1736362259455,-500.0,0.00011817,2]
[348169716,1736362259465,-500.0,0.00011817,2]
[348169717,1736362259475,-500.0,0.00011817,2]
[348169718,1736362259485,-500.0,0.00011817,2]
[348169719,1736362259495,-577.26,0.00011817,2]
[348169720,1736362259505,-1462.34,0.00011817,2]
[348169721,1736362259516,-757.86,0.00011817,2]
[348169722,1736362259527,-701.16,0.00011817,2]
[348169723,1736362259538,-2580.23,0.00011817,2]
[348169724,1736362259547,-628.18,0.00011817,2]
[348169725,1736362259557,-500.0,0.00011817,2]
[348169726,1736362259567,-500.0,0.00011817,2]
[348169727,1736362259578,-150.0,0.00011828,2]
[348169728,1736362259587,-1500.0,0.00011837,2]
[348169729,1736362259597,-1500.0,0.0001184,2]
[348169730,1736362259607,-150.0,0.00011847,2]
[348169731,1736362259616,-150.227651,0.00011858,2]
[348169732,1736362259626,-150.227652,0.00011858,2]
[348169733,1736362259636,-150.0,0.00011865,2]
[348169734,1736362259646,-1215.3,0.0001189,2]
[348169735,1736362259656,-993.2,0.0001189,2]
[348169736,1736362259666,-150.0,0.000119,2]
[348169737,1736362259677,-429.70395169,0.0001191,2]
[348169738,1736362259686,-359.69016016,0.00011918,2]
[348169739,1736362259696,-150.0,0.00011939,2]
[348169740,1736362259706,-500.0,0.00011951,2]
[348169741,1736362259716,-235.23,0.00011951,2]
[348169742,1736362259725,-500.0,0.00011952,2]
[348169743,1736362259735,-500.0,0.00011952,2]
[348169744,1736362259744,-1871.82,0.00011952,2]
[348169745,1736362259754,-500.0,0.00011952,2]
[348169746,1736362259764,-651.25,0.00011952,2]
[348169747,1736362259775,-515.76,0.00011952,2]
[348169748,1736362259795,-507.55,0.00011952,2]
[348169749,1736362259818,-500.0,0.00011952,2]
[348169750,1736362259840,-500.0,0.00011952,2]
[348169751,1736362259863,-500.0,0.00011952,2]
[348169752,1736362259884,-150.0,0.00011954,2]
[348169753,1736362259906,-636.96,0.0001197,2]
[348169754,1736362259929,-992.92,0.00011989,2]
[348169755,1736362259951,-500.0,0.00011989,2]
[348169756,1736362259975,-605.86,0.00011989,2]
[348169757,1736362259997,-688.45,0.00011989,2]
[348169758,1736362260020,-1118.67,0.00011989,2]
[348169759,1736362260042,-618.66,0.00011989,2]
[348169760,1736362260065,-868.06,0.00011989,2]
[348169761,1736362260087,-1466.85,0.00011989,2]
[348169762,1736362260097,-780.29,0.00011989,2]
[348169763,1736362260108,-730.05,0.00011989,2]
[348169764,1736362260117,-500.0,0.00011989,2]
[348169765,1736362260128,-796.37,0.00011989,2]
[348169766,1736362260288,-1887.92,0.00011989,2]
[348169767,1736362260310,-976.17,0.00011989,2]
[348169768,1736362260321,-543.78,0.00011989,2]
[348169769,1736362260331,-500.0,0.00011989,2]
[348169770,1736362260340,-500.0,0.00011989,2]
[348169771,1736362260351,-862.27,0.00011989,2]
[348169772,1736362260360,-500.0,0.00011989,2]
[348169773,1736362260370,-559.19,0.00011989,2]
[348169774,1736362260380,-508.44,0.00011989,2]
[348169775,1736362260391,-1264.47,0.00011989,2]
[348169776,1736362260401,-533.52,0.00011989,2]
[348169777,1736362260412,-1971.15,0.00012,5]
[348169778,1736362260422,-2038.5,0.00012,5]
[348169779,1736362260431,-1991.75,0.00012,5]
[348169780,1736362260441,-1975.09,0.00012,5]
[348169781,1736362260451,-1980.84,0.00012,5]
[348169782,1736362260460,-2023.98,0.00012,5]
[348169783,1736362260470,-152.03,0.00012,5]
[348169784,1736362260480,-1992.2,0.00012,5]
[348169785,1736362260490,-2019.92,0.00012,5]
[348169786,1736362260500,-2035.09,0.00012,5]
[348169787,1736362260509,-1973.12,0.00012,5]
[348169788,1736362260519,-1974.45,0.00012,5]
[348169789,1736362260529,-2023.41,0.00012,5]
[348169790,1736362260540,-2022.19,0.00012,5]
[348169791,1736362260549,-1995.84,0.00012,5]
[348169792,1736362260559,-1979.24,0.00012,5]
[348169793,1736362260568,-1992.97,0.00012,5]
[348169794,1736362260578,-1999.09,0.00012,5]
[348169795,1736362260588,-1972.48,0.00012,5]
[348169796,1736362260597,-2008.68,0.00012,5]
[348169797,1736362260607,-2017.43,0.00012,5]
[348169798,1736362260617,-2035.04,0.00012,5]
[348169799,1736362260626,-1977.59,0.00012,5]
[348169800,1736362260636,-1973.16,0.00012,5]
[348169801,1736362260645,-2003.16,0.00012,5]
[348169802,1736362260654,-1983.28,0.00012,5]
[348169803,1736362260664,-1989.61,0.00012,5]
[348169804,1736362260674,-1963.34,0.00012,5]
[348169805,1736362260684,-150.47,0.00012,5]
[348169806,1736362260693,-2016.31,0.00012,5]
[348169807,1736362260703,-150.87,0.00012,5]
[348169808,1736362260713,-152.84,0.00012,5]
[348169809,1736362260723,-1981.04,0.00012,5]
[348169810,1736362260735,-1984.06,0.00012,5]
[348169811,1736362260745,-1982.96,0.00012,5]
[348169812,1736362260755,-1979.66,0.00012,5]
[348169813,1736362260765,-150.49,0.00012,5]
[348169814,1736362260775,-150.0,0.00012001,2]
[348169815,1736362260784,-150.0,0.00012007,2]
[348169816,1736362260798,-1500.0,0.00012011,2]
[348169817,1736362260808,-214.31444851,0.00012011,2]
[348169818,1736362260818,-150.0,0.00012026,2]
[348169819,1736362260827,-150.0,0.00012026,2]
[348169820,1736362260837,-150.0,0.00012032,2]
[348169821,1736362260847,-150.0,0.00012035,2]
[348169822,1736362260857,-150.0,0.00012037,2]
[348169823,1736362260867,-1500.0,0.00012038,2]
[348169824,1736362260876,-150.0,0.00012039,2]
[348169825,1736362260886,-150.0,0.00012049,2]
[348169826,1736362260895,-150.0,0.00012049,2]
[348169827,1736362260905,-150.0,0.00012051,2]
[348169828,1736362260916,-150.0,0.00012051,2]
[348169829,1736362260928,-777.34088942,0.00012052,2]
[348169830,1736362260937,-317.3361422,0.00012053,2]
[348169831,1736362260947,-150.0,0.00012053,2]
[348169832,1736362260957,-200.0,0.00012055,2]
[348169833,1736362260967,-150.0,0.00012055,2]
[348169834,1736362260976,-150.0,0.00012059,2]
[348169835,1736362260986,-150.0,0.00012061,2]
[348169836,1736362260996,-150.0,0.00012061,2]
[348169837,1736362261007,-150.0,0.00012061,2]
[348169838,1736362261017,-500.0,0.00012062,2]
[348169839,1736362261026,-500.0,0.00012062,2]
[348169840,1736362261039,-500.0,0.00012062,2]
[348169841,1736362261048,-2544.2,0.00012062,2]
[348169842,1736362261058,-1042.29,0.00012062,2]
[348169843,1736362261067,-629.99,0.00012062,2]
[348169844,1736362261078,-500.0,0.00012062,2]
[348169845,1736362261087,-926.3,0.00012062,2]
[348169846,1736362261097,-1464.56,0.00012062,2]
[348169847,1736362261107,-1397.23,0.00012062,2]
[348169848,1736362261118,-2215.57,0.00012062,2]
[348169849,1736362261128,-1134.57,0.00012062,2]
[348169850,1736362261138,-3254.43,0.00012062,2]
[348169851,1736362261148,-3864.53,0.00012062,2]
[348169852,1736362261157,-150.0,0.00012064,2]
[348169853,1736362261167,-150.0,0.00012065,2]
[348169854,1736362261176,-150.0,0.00012066,2]
[348169855,1736362261186,-150.0,0.00012068,2]
[348169856,1736362261195,-181.55,0.00012073,2]
[348169857,1736362261205,-150.0,0.00012076,2]
[348169858,1736362261215,-150.0,0.00012077,2]
[348169859,1736362261224,-150.0,0.00012078,2]
[348169860,1736362261235,-150.0,0.0001208,2]
[348169861,1736362261245,-150.0,0.00012082,2]
[348169862,1736362261255,-150.0,0.00012083,2]
[348169863,1736362261264,-150.0,0.00012084,2]
[348169864,1736362261274,-500.0,0.0001209,2]
[348169865,1736362261283,-500.0,0.0001209,2]
[348169866,1736362261295,-577.51,0.0001209,2]
[348169867,1736362261304,-500.0,0.0001209,2]
[348169868,1736362261313,-150.0,0.0001209,2]
[348169869,1736362261323,-587.5,0.0001209,2]
[348169870,1736362261332,-500.0,0.0001209,2]
[348169871,1736362261341,-228.64,0.0001209,2]
[348169872,1736362261351,-366.26397407,0.0001209,2]
[348169873,1736362261361,-500.0,0.0001209,2]
[348169874,1736362261373,-500.0,0.0001209,2]
[348169875,1736362261383,-658.68,0.0001209,2]
[348169876,1736362261393,-500.0,0.0001209,2]
[348169877,1736362261403,-500.0,0.0001209,2]
[348169878,1736362261413,-801.18,0.0001209,2]
[348169879,1736362261423,-701.9,0.0001209,2]
[348169880,1736362261433,-160.8,0.0001209,2]
[348169881,1736362261443,-609.7,0.0001209,2]
[348169882,1736362261452,-693.7,0.0001209,2]
[348169883,1736362261462,-500.0,0.0001209,2]
[348169884,1736362261472,-500.0,0.0001209,2]
[348169885,1736362261481,-718.53,0.0001209,2]
[348169886,1736362261491,-500.0,0.0001209,2]
[348169887,1736362261501,-500.0,0.0001209,2]
[348169888,1736362261511,-784.05,0.0001209,2]
[348169889,1736362261521,-500.0,0.0001209,2]
[348169890,1736362261530,-500.0,0.0001209,2]
[348169891,1736362261542,-557.73,0.0001209,2]
[348169892,1736362261552,-500.0,0.0001209,2]
[348169893,1736362261562,-560.21,0.0001209,2]
[348169894,1736362261571,-500.0,0.0001209,2]
[348169895,1736362261581,-500.0,0.0001209,2]
[348169896,1736362261591,-500.0,0.0001209,2]
[348169897,1736362261601,-500.0,0.0001209,2]
[348169898,1736362261610,-527.02389303,0.0001209,2]
[348169899,1736362261620,-642.81,0.0001209,2]
[348169900,1736362261632,-238.81,0.0001209,2]
[348169901,1736362261642,-500.0,0.0001209,2]
[348169902,1736362261652,-956.3,0.0001209,2]
[348169903,1736362261661,-500.0,0.0001209,2]
[348169904,1736362261671,-500.0,0.0001209,2]
[348169905,1736362261680,-500.0,0.0001209,2]
[348169906,1736362261690,-603.91,0.0001209,2]
[348169907,1736362261699,-500.0,0.0001209,2]
[348169908,1736362261709,-1933.32,0.0001209,2]
[348169909,1736362261719,-500.0,0.0001209,2]
[348169910,1736362261728,-500.0,0.0001209,2]
[348169911,1736362261738,-500.0,0.0001209,2]
[348169912,1736362261748,-657.09,0.0001209,2]
[348169913,1736362261757,-576.46,0.0001209,2]